Cogmind - Beta 15 @@@ ROGUE MODE // 2025.09.14 @ 21:51:12 Player: Runagate Result: Self-destructed Performance ------------- Evolutions (1) 500 Regions Visited (2) 400 Robots Destroyed (23) 115 Value Destroyed (358) 358 Prototype IDs (0) 0 Alien Tech Used (0) 0 Bonus (0) 0 TOTAL SCORE: 1373 Bonus ------- None Cogmind --------- Core Integrity 336/400 Matter 300/300 Energy 125/125 System Corruption 0% Temperature Cool (0) Movement Treading (160) Location -9/Materials Parts ------- > --- POWER (1) -------- Light Ion Engine > --- PROPULSION (3) --- Light Treads Light Treads > --- UTILITY (3) ------ Small Storage Unit Seismic Detector Improved Targeting Computer > --- WEAPON (2) ------- Heavy Assault Rifle Heavy Assault Rifle > --- INVENTORY (8) ---- Aluminum Leg Aluminum Leg Small Matter Pod (50) Improved Targeting Computer Light Armor Plating Medium Armor Plating Heavy Assault Rifle Mining Laser Peak State ------------ > --- POWER ------------ Light Ion Engine > --- PROPULSION ------- Light Treads Light Treads > --- UTILITY ---------- Small Storage Unit Improved Targeting Computer Medium Armor Plating > --- WEAPON ----------- Heavy Assault Rifle Heavy Assault Rifle > --- INVENTORY -------- Aluminum Leg Aluminum Leg Small Matter Pod Seismic Detector Light Armor Plating Heavy Assault Rifle Heavy Assault Rifle Mining Laser [Rating: 13] Favorites ----------- Power Light Ion Engine Engine Light Ion Engine Propulsion Light Treads Treads Light Treads Utility Small Storage Unit Device Seismic Detector Storage Small Storage Unit Processor Improved Targeting Computer Protection Medium Armor Plating Weapon Small Laser Energy Gun Small Laser Ballistic Gun Heavy Assault Rifle Build | -11 -10 -9 ------- Run | Yrd Mat Mat Slots Evolved 2 | . . 2 Power . | . . . Propulsion 1 | . . 1 Utility 1 | . . 1 Weapon . | . . . Parts Attached 17 | 8 6 3 Power 2 | 2 . . Engine 2 | 2 . . Core . | . . . Reactor . | . . . Propulsion 2 | 2 . . Treads 2 | 2 . . Leg . | . . . Wheel . | . . . Hover . | . . . Flight . | . . . Utility 4 | 2 . 2 Device 1 | 1 . . Storage 1 | 1 . . Processor 1 | . . 1 Hackware . | . . . Protection 1 | . . 1 Artifact . | . . . Weapon 9 | 2 6 1 Energy Gun 4 | 2 2 . Energy Cannon . | . . . Ballistic Gun 5 | . 4 1 Ballistic Cannon . | . . . Launcher . | . . . Special Weapon . | . . . Impact Weapon . | . . . Slashing Weapon . | . . . Piercing Weapon . | . . . Special Melee Weapon . | . . . Unidentified Prototypes . | . . . Parts Lost 1 | . 1 . Power 1 | . 1 . Propulsion . | . . . Utility . | . . . Weapon . | . . . Highest Loss Streak 1 | . 1 . To Critical Strikes . | . . . Average Backups 6 | 3 7 7 Power . | . . . Propulsion 1 | 1 2 2 Utility 1 | . 1 3 Weapon 2 | . 3 2 Tool/Special . | . . . Unused Backups 9 | . 2 7 Power . | . . . Propulsion 2 | . . 2 Utility 3 | . . 3 Weapon 4 | . 2 2 Tool/Special . | . . . Average Slot Usage (%) 94 | . 98 88 Engine 12 | . 12 11 Treads 25 | . 28 22 Device 12 | . 14 9 Storage 12 | . 14 11 Processor 4 | . . 11 Energy Gun 6 | . 10 . Ballistic Gun 18 | . 17 22 Peak Build Rating 13 | 7 10 13 Average Rating 8 | 6 7 11 On Entrance 5 | . 7 10 Naked Turns . | . . . Heaviest Build 21 | 13 15 21 Greatest Support 40 | 40 40 40 Greatest Overweight (x) . | . . . Average Overweight (x) . | . . . Largest Inventory Capacity 8 | 8 8 8 Average Capacity 7 | 7 8 8 Most Carried 8 | 5 8 8 Average Carried 6 | 3 7 7 Final Capacity 8 | 8 8 8 Final Carried 8 | 5 8 8 Class Distribution -------------------- 100% | Mutant Dominant Class ---------------- Mutant | -10/Materials Mutant | -9/Materials Resources | -11 -10 -9 ----------- Run | Yrd Mat Mat Matter Collected 482 | 288 50 144 Remotely . | . . . Salvage Created 657 | 292 189 176 Parts 42 | 24 8 10 Haulers Intercepted . | . . . Recyclers Shooed 1 | 1 . . Parts Field Recycled . | . . . Retrieved Matter . | . . . Parts Self-Destructed . | . . . Prevented . | . . . Kills | -11 -10 -9 ------- Run | Yrd Mat Mat Combat Hostiles Destroyed 10 | . 4 6 Guns 10 | . 4 6 Classes Destroyed 6 | 3 1 2 Worker 4 | 3 . 1 Tunneler 7 | 7 . . Recycler 1 | 1 . . Watcher 1 | . . 1 Swarmer 4 | . . 4 Grunt 6 | . 4 2 Best Kill Streak 5 | 3 2 5 Combat Bots Only 4 | . 2 4 Max Kills in Single Turn 1 | 1 1 1 Gunslinging . | . . . Exploded . | . . . Melee . | . . . Uniques/NPCs Destroyed . | . . . Combat | -11 -10 -9 -------- Run | Yrd Mat Mat Hostile Shots Fired 61 | . 25 36 Missed 15 | . 8 7 Hits 46 | . 17 29 Projectile 46 | . 17 29 Damage Taken 501 | . 221 280 Core 97 | . 33 64 Absorbed by Shields . | . . . Core Remaining (%) 93 | 100 86 . Volleys Fired 65 | 32 18 15 Largest 2 | 2 2 2 Hottest 80 | 80 80 46 Shots Fired 130 | 64 36 30 Gun 130 | 64 36 30 Cannon . | . . . Launcher . | . . . Special . | . . . Kinetic 30 | . . 30 Thermal 100 | 64 36 . Explosive . | . . . Electromagnetic . | . . . Robot Hit Streak 5 | 5 4 5 Robot Miss Streak 3 | 2 3 3 Penetration Max . | . . . Secondary Targets 1 | . . 1 Max Gunslinging Chain 1 | . . 1 Shots Hit Robots 78 | 38 20 20 Core Hits 31 | 12 10 9 Critical Kills . | . . . Critical Parts Destroyed . | . . . Critical Strikes . | . . . Melee Attacks . | . . . Impact . | . . . Slashing . | . . . Piercing . | . . . Sneak Attacks . | . . . Combat Hostiles . | . . . Follow-up Attacks . | . . . Damage Inflicted 961 | 399 231 331 Guns 950 | 399 231 320 Cannons . | . . . Explosions . | . . . Melee . | . . . Ramming 11 | . . 11 Kinetic 320 | . . 320 Thermal 630 | 399 231 . Explosive . | . . . Electromagnetic . | . . . Impact . | . . . Slashing . | . . . Piercing . | . . . Highest Corruption . | . . . Average Corruption . | . . . Corruption Purged . | . . . Corruption Blocked . | . . . Overload Shots . | . . . Overflow Damage . | . . . Projectiles . | . . . Explosions . | . . . Melee . | . . . Knockbacks . | . . . Impact . | . . . Kinetic . | . . . Secondary . | . . . Self-Inflicted Damage . | . . . Shots . | . . . Rammed 4 | . 1 3 Targets Rammed 5 | . 1 4 Kicked . | . . . Crushed 1 | . . 1 Highest Temperature 218 | 90 218 1 Average Temperature 57 | 39 93 1 Received Heat Transfer 195 | . 123 72 Siege Activations . | . . . Martial Activations . | . . . Shielding Activations . | . . . Robots Disrupted . | . . . Combat Hostiles . | . . . Robots Corrupted . | . . . Combat Hostiles . | . . . Parts Fried . | . . . Impact Corruptions . | . . . Robots Melted . | . . . Combat Hostiles . | . . . Parts Melted . | . . . Heat Transferred 1425 | 900 525 . Parts Sabotaged . | . . . Parts Stolen . | . . . Parts Stripped . | . . . Power Chain Reactions . | . . . Alert | -11 -10 -9 ------- Run | Yrd Mat Mat Maximum Alert Level . | . . . Low Security (%) 100 | 100 100 100 Level 1 . | . . . Level 2 . | . . . Level 3 . | . . . Level 4 . | . . . Level 5 . | . . . High Security . | . . . Max Security . | . . . Peak Influence 90 | 10 50 90 Initial . | . . . Average 11 | 1 6 28 Influence Increases 307 | 55 100 152 Destroy 0b10 Robot/C 200 | . 80 120 Destroy 0b10 Robot/NC 65 | 55 . 10 Destroy Leader 42 | . 20 22 Influence Decreases 272 | 55 100 117 Time Decay 262 | 55 90 117 Lost Part 10 | . 10 . Squads Dispatched 1 | . . 1 Investigation . | . . . Extermination . | . . . Reinforcement 1 | . . 1 Assault . | . . . Garrison . | . . . Intercept . | . . . Searches Triggered . | . . . Construction Impeded . | . . . Haulers Reinforced . | . . . Active Scanning Responses . | . . . Cargo Convoy Interrupts . | . . . Stealth | -11 -10 -9 --------- Run | Yrd Mat Mat Distress Signals 2 | . . 2 Communications Jammed . | . . . Distress Signals . | . . . Times Spotted 22 | . 8 14 Peak Tracking Total 5 | . 5 5 Tactical Retreats . | . . . Traps | -11 -10 -9 ------- Run | Yrd Mat Mat Traps Triggered . | . . . Indirectly . | . . . Trap Hack Attempts . | . . . Triggered . | . . . Disarmed . | . . . Reprogrammed . | . . . Reused . | . . . Traps Extracted . | . . . Installed . | . . . Triggered . | . . . Machines | -11 -10 -9 ---------- Run | Yrd Mat Mat Machines Disabled . | . . . Max in Single Turn . | . . . Machines Repaired . | . . . Machines Dismantled . | . . . Machines Sabotaged . | . . . Overloaded Fab Kills . | . . . Hacking | -11 -10 -9 --------- Run | Yrd Mat Mat Machines Accessed 3 | . 3 . Terminals 3 | . 3 . Fabricators . | . . . Repair Stations . | . . . Recycling Units . | . . . Scanalyzers . | . . . Garrison Access . | . . . Total Hacks 9 | . 9 . Successful 2 | . 2 . Failed 7 | . 7 . Catastrophic 2 | . 2 . Database Lockouts . | . . . Manual 4 | . 4 . Terminals 9 | . 9 . Fabricators . | . . . Repair Stations . | . . . Recycling Units . | . . . Scanalyzers . | . . . Garrison Access . | . . . Terminal Hacks 2 | . 2 . Locate Traps 2 | . 2 . Fabricator Hacks . | . . . Repair Station Hacks . | . . . Recycling Unit Hacks . | . . . Scanalyzer . | . . . Garrison Access Hacks . | . . . Unauthorized Hacks . | . . . Terminals . | . . . Fabricators . | . . . Repair Stations . | . . . Recycling Units . | . . . Scanalyzers . | . . . Garrison Access . | . . . Data Cores Recovered . | . . . Used . | . . . Hacking Detections 3 | . 3 . Full Trace Events . | . . . Feedback Events . | . . . Feedback Blocked . | . . . Robot Schematics Acquired . | . . . Robots Built . | . . . Authchips . | . . . Time . | . . . Total Robot Build Rating . | . . . Part Schematics Acquired . | . . . Parts Built . | . . . Authchips . | . . . Time . | . . . Total Part Build Rating . | . . . Parts Repaired . | . . . Time . | . . . Parts Recycled . | . . . Recycled Matter . | . . . Retrieved Matter . | . . . Retrieved Components . | . . . Parts Scanalyzed . | . . . Part Schematics Acquired . | . . . Parts Damaged . | . . . Bothacking | -11 -10 -9 ------------ Run | Yrd Mat Mat Used RIF Installer . | . . . Robots Hacked . | . . . Non-combat . | . . . Combat . | . . . Robot Hacks Applied . | . . . Relay Couplers Released . | . . . Fabnet Peak Effective % . | . . . Robots Rewired . | . . . Allies Hacked . | . . . Hacks Repelled . | . . . Allies | -11 -10 -9 -------- Run | Yrd Mat Mat Total Allies . | . . . Largest Group . | . . . Highest-Rated Group . | . . . Highest-Rated Ally . | . . . Total Orders . | . . . Ally Attacks . | . . . Total Damage . | . . . Kills . | . . . Allies Corrupted . | . . . Allies Melted . | . . . Intel | -11 -10 -9 ------- Run | Yrd Mat Mat Active Infowar (turns) 1119 | 201 596 322 Seismic 1119 | 201 596 322 Robot Analysis Total . | . . . Derelict Logs Recovered . | . . . Drone Launches . | . . . Drone Recoveries . | . . . Exploration | -11 -10 -9 ------------- Run | Yrd Mat Mat Turns Passed 1308 | 322 596 390 Spaces Moved 631 | 123 313 195 Core 5 | 5 . . Treads 626 | 118 313 195 Legs . | . . . Wheels . | . . . Hover . | . . . Flight . | . . . Fastest Speed 50 | 50 160 160 Average Speed 159 | 155 160 160 Slowest Speed 160 | 160 160 160 Overloaded Moves . | . . . Propulsion Burnouts . | . . . Robots Hopped . | . . . Potential Cave-ins . | . . . Cave-ins Triggered . | . . . Exploration Rate (%) 30 | 6 59 26 Regions Visited 2 Branch Regions . Pre-discovered Areas . | . . . Known Exits Taken . | . . . Unknown Exits Taken 2 | 1 1 . Scrap Searched . | . . . Spaces Dug . | . . . Terrain Destroyed . | . . . Melee . | . . . Projectile . | . . . AOE . | . . . Terrain Rammed . | . . . Walls Destroyed . | . . . Machines Disabled . | . . . Actions | -11 -10 -9 --------- Run | Yrd Mat Mat Total 801 | 186 376 239 Wait 63 | 20 25 18 Move 629 | 122 312 195 Hop . | . . . Pick Up 13 | 4 7 2 Fast Attach 7 | 7 . . Attach 2 | . 1 1 Detach . | . . . Swap 10 | 1 6 3 Drop 7 | . 6 1 Fire 65 | 32 18 15 Melee . | . . . Ram . | . . . Kick . | . . . Crush 5 | . 1 4 Escape Stasis . | . . . Rewire . | . . . Trap . | . . . Miscellaneous . | . . . Route ------- -11/Scrapyard -10/Materials (discovered 2 exits: *Mat x2) -9/Materials (discovered 1 exit: [*Min]) History --------- Turn | Location | Event 7 | -11/Scrapyard | Discovered new exit (range 14) 323 | -11/Scrapyard | Entered Materials 324 | -10/Materials | Build established: Mutant 648 | -10/Materials | Discovered new exit (range 15) 823 | -10/Materials | Discovered new exit (range 4) 919 | -10/Materials | Entered another Materials area 919 | -9/Materials | Evolved 2 slots: Propulsion x1, Utility x1 1280 | -9/Materials | Discovered new exit (range 9) 1309 | -9/Materials | Self-destructed Last Messages --------------- 01095_ R-06 Scavenger collects Lgt. Ion Engine. 01096_ K-01 Serf collects debris. 01099_ R-06 Scavenger collects Visual Processing Unit. 01135_ Slammed into R-06 Scavenger. 01164_ Dropped Hvy. Assault Rifle. 01165_ Acquired Imp. Targeting Computer. 01172_ Acquired 4 matter. 01262_ G-47 Trooper destroyed. 01267_ Acquired 42 matter. 01271_ R-06 Scavenger collects Particle Gun. 01272_ G-34 Mercenary destroyed. 01275_ U-05 Engineer builds a Door. 01275_ Slammed into R-06 Scavenger. 01277_ Crushed K-01 Serf. 01277_ K-01 Serf destroyed. 01280_ EXIT=FOUND 01287_ R-06 Scavenger collects Lgt. Ion Engine. 01301_ W-16 Scout sends out distress signal. 01306_ Slammed into W-16 Scout. Map ----- +----------------------------------------------------+ | # # ##+#####?# ##### ?????????????????? | | # # ? ??????????????????? | | # # " ?? ????????????????????? | | ## # ???? ?????????????????????? | | ?# # #????????? #??????????????????????? | | ?# #??######### #???????????????????????? | | ?# #### # #??#####????????????????? | | ?# %+ %+ #??"|"!""#??????????????? | | ?# #### # #? "|"!" #??????????????? | | ?# #??######### ## ###????????????? | | ?#######+######??????# ???????????? | | ??# [ #??????# < ???????????? | | ??# [ [ #??????# ???????????? | | ??# ! #??????# ## ###????????????? | | ??# #??????# #?########??????????????? | | ??# #??????# #???????????????????????? | | ??# ! #??????# #??????"????????????????? | | ??# #?????## ##????T"#???????????????? | | #####+#########?????# ! ####" "### ???????????? | | + #?????????????# ???????????? | | ### #?????????????# " ???????????? | | #?# #?????????????# ???????????? | | #?# +?????????????# ##/#######?????????????? | | #?# #?????????????### ###?? = #???????????????? | | #?# #???????????????# ###a #???????????????? | | #?# #???????????????# %@/ """ #???????????????? | | #?# #???????????????# ### """ #???????????????? | | #?# #######?????????# #????""" #???????????????? | | #?# ??? #?????? #???????????????? | | #?# ######"T"??????## #????????#???????????????? | | #?# %%#???????????????# #????????????????????????? | | #?# #???????????????# #????????????????????????? | | ### #???????????????# #????????????????????????? | | #???????????????? ?????????????????????????? | | #???????????????? ?????????????????????????? | | % #???????????????? ?????????????????????????? | | ##+#####??????????????? ?????????????????????????? | | #??????????????? ?????????????????????????? | | """ #??????????????? ?????????????????????????? | | """ #??????????????? ?????????????????????????? | | """ #?????????????????????????????????????????? | | #?????????????????????????????????????????? | | """ #?????????????????????????????????????????? | | """ #?????????????????????????????????????????? | | """ #?????????????????????????????????????????? | | #?????????????????????????????????????????? | | ########?????????????????????????????????????????? | | ?????????????????????????????????????????????????? | | ?????????????????????????????????????????????????? | | ?????????????????????????????????????????????????? | +----------------------------------------------------+ Best States ------------- Heat Dissipation 28 Energy Generation 10 Energy Capacity 250 Matter Stores 300 Matter Capacity 300 Sight Range 16 Terrain Scan Density 10 Armor Coverage 225 Evasion (%) 40 Targeting Accuracy 6 Recoil Reduction 2 Item Schematics ----------------- None Robot Schematics ------------------ None Fabricated ------------ Nothing Repaired ---------- Nothing Alien Tech Used ----------------- None Achievements -------------- None Challenges ------------ None Game ------ Seed IonCoreLink Manual? 0 Play Time 00:09:24 Cumulative 63.8 hours Start 2025.09.14 @ 20:21:04 End 2025.09.14 @ 21:51:12 Sessions 1 Manual Loads 0 Difficulty Rogue Special Mode None Game No. 128 Rogue 126 Adventurer 0 Explorer 2 Win Type - Total 0 Types 0/0/0/0/0/0/0/0/0/0 Lore% 26 Gallery% 42 Achievement% 39 Wizard Run 0 Options --------- Layout 2 ASCII 0 Keyboard 1 Movement Arrows Keybinds 0 Fullscreen 1 Font 28/SmallcapsGlow Map View 50x49 Zoom Use 0% Tactical HUD 1 Map Filters NONE Filters NONE Steam 1 RUN: 65c149ea-022c-4aa2-b6bc-a81d51087942